[Event "*** SCC Grand Prix: Titled Tuesday Blitz"]
[Site "Chess.com"]
[Date "2020.07.14"]
[Round "7"]
[White "The_Machine04"]
[Black "KejJaj"]
[Result "1-0"]
[WhiteElo "2290"]
[BlackElo "2039"]
[TimeControl "180+1"]
[EndTime "11:19:23 PDT"]
[Termination "The_Machine04 won by resignation"]

1. d4 {[%clk 0:03:00.9]} 1... f5 {[%clk 0:02:59.3]} 2. Bg5 {[%clk 0:03:00.3]}
2... h6 {[%clk 0:02:58.5]} 3. Bh4 {[%clk 0:02:59.3]} 3... c5 {[%clk 0:02:58.9]}
4. e4 {[%clk 0:02:45.5]} 4... Qa5+ {[%clk 0:02:56]} 5. Nd2 {[%clk 0:02:37.2]}
5... cxd4 {[%clk 0:02:52]} 6. Qh5+ {[%clk 0:02:33.8]} 6... Kd8 {[%clk
0:02:50.4]} 7. exf5 {[%clk 0:02:27]} 7... Nf6 {[%clk 0:02:42.8]} 8. Bxf6 {[%clk
0:02:26.3]} 8... exf6 {[%clk 0:02:41.8]} 9. Bd3 {[%clk 0:02:17.8]} 9... Bb4
{[%clk 0:02:35.9]} 10. Nf3 {[%clk 0:02:15.1]} 10... Nc6 {[%clk 0:02:32.1]} 11.
a3 {[%clk 0:01:54.3]} 11... Bxd2+ {[%clk 0:02:30.1]} 12. Nxd2 {[%clk 0:01:53.1]}
12... Ne5 {[%clk 0:02:18.9]} 13. O-O-O {[%clk 0:01:37.1]} 13... d6 {[%clk
0:02:14.3]} 14. g4 {[%clk 0:01:25]} 14... Bd7 {[%clk 0:02:07.7]} 15. Be4 {[%clk
0:01:10.7]} 15... d5 {[%clk 0:01:58.7]} 16. Nb3 {[%clk 0:00:46]} 16... Qb5
{[%clk 0:01:54.1]} 17. Nxd4 {[%clk 0:00:39.5]} 17... Qa4 {[%clk 0:01:37.3]} 18.
Bxd5 {[%clk 0:00:35.3]} 18... Rc8 {[%clk 0:01:31.7]} 19. Bb3 {[%clk 0:00:24.4]}
19... Qa6 {[%clk 0:01:20.9]} 20. f4 {[%clk 0:00:20.6]} 20... Nd3+ {[%clk
0:01:19.6]} 21. Rxd3 {[%clk 0:00:15.8]} 21... Qxd3 {[%clk 0:01:18.7]} 22. Rd1
{[%clk 0:00:16]} 22... Qe3+ {[%clk 0:01:18]} 23. Kb1 {[%clk 0:00:15.7]} 23...
Re8 {[%clk 0:01:15.3]} 24. Qf7 {[%clk 0:00:11]} 24... Rc5 {[%clk 0:00:33.9]} 25.
Ne6+ {[%clk 0:00:10]} 25... Qxe6 {[%clk 0:00:18.5]} 26. fxe6 {[%clk 0:00:07.7]}
1-0

[Event "*** SCC Grand Prix: Titled Tuesday Blitz"]
[Site "Chess.com"]
[Date "2020.07.14"]
[Round "7"]
[White "FabianoCaruana"]
[Black "tigra"]
[Result "1-0"]
[WhiteElo "3025"]
[BlackElo "2843"]
[TimeControl "180+1"]
[EndTime "11:19:24 PDT"]
[Termination "FabianoCaruana won by resignation"]

1. d4 {[%clk 0:03:00.9]} 1... Nf6 {[%clk 0:02:59.7]} 2. c4 {[%clk 0:03:01.4]}
2... g6 {[%clk 0:03:00.3]} 3. Nf3 {[%clk 0:03:01.5]} 3... Bg7 {[%clk 0:02:59.7]}
4. e3 {[%clk 0:03:01.7]} 4... d6 {[%clk 0:02:58.8]} 5. Nc3 {[%clk 0:03:00.1]}
5... O-O {[%clk 0:02:59.5]} 6. Be2 {[%clk 0:03:00.3]} 6... Nbd7 {[%clk
0:02:58.7]} 7. O-O {[%clk 0:03:00.7]} 7... e5 {[%clk 0:02:59.4]} 8. Qc2 {[%clk
0:03:01.3]} 8... Re8 {[%clk 0:02:58.5]} 9. Rd1 {[%clk 0:03:00.2]} 9... Qe7
{[%clk 0:02:58.7]} 10. b4 {[%clk 0:02:59.8]} 10... e4 {[%clk 0:02:57.7]} 11. Nd2
{[%clk 0:02:59.8]} 11... Nf8 {[%clk 0:02:58.3]} 12. a4 {[%clk 0:02:55.9]} 12...
h5 {[%clk 0:02:57.9]} 13. Ba3 {[%clk 0:02:54.5]} 13... Bf5 {[%clk 0:02:57.5]}
14. b5 {[%clk 0:02:53.1]} 14... Ne6 {[%clk 0:02:56]} 15. c5 {[%clk 0:02:49.6]}
15... Nxd4 {[%clk 0:02:54.7]} 16. exd4 {[%clk 0:02:44.7]} 16... e3 {[%clk
0:02:55.1]} 17. Bd3 {[%clk 0:02:44.7]} 17... exf2+ {[%clk 0:02:55.3]} 18. Kh1
{[%clk 0:02:35.4]} 18... Qe1+ {[%clk 0:02:55]} 19. Nf1 {[%clk 0:02:33.6]} 19...
Ng4 {[%clk 0:02:49.6]} 20. Bxf5 {[%clk 0:02:20.4]} 20... gxf5 {[%clk 0:02:50.5]}
21. Qd3 {[%clk 0:01:50.3]} 21... Re3 {[%clk 0:02:48.3]} 22. Qxe3 {[%clk
0:01:46.2]} 22... Nxe3 {[%clk 0:02:46.4]} 23. Rxe1 {[%clk 0:01:45.6]} 23...
fxe1=Q {[%clk 0:02:45.9]} 24. Rxe1 {[%clk 0:01:46.5]} 24... Nc2 {[%clk
0:02:43.9]} 25. Re7 {[%clk 0:01:40.1]} 25... Nxa3 {[%clk 0:02:43.8]} 26. cxd6
{[%clk 0:01:26.9]} 26... cxd6 {[%clk 0:02:37.6]} 27. Nd5 {[%clk 0:01:25.1]}
27... Rc8 {[%clk 0:02:32.9]} 28. g3 {[%clk 0:01:17.5]} 28... Bxd4 {[%clk
0:02:20.7]} 29. Rxb7 {[%clk 0:01:16.7]} 29... Rc1 {[%clk 0:02:15.5]} 30. Kg2
{[%clk 0:01:15.7]} 30... Rc2+ {[%clk 0:01:43.5]} 31. Kh3 {[%clk 0:01:12.3]}
31... Rf2 {[%clk 0:01:43.6]} 32. Nfe3 {[%clk 0:01:08.7]} 32... Kg7 {[%clk
0:01:43.8]} 33. a5 {[%clk 0:00:59.5]} 33... Kg6 {[%clk 0:01:15.2]} 34. b6 {[%clk
0:00:53]} 34... axb6 {[%clk 0:01:11.2]} 35. axb6 {[%clk 0:00:51.3]} 35... Rb2
{[%clk 0:01:05]} 36. Rd7 {[%clk 0:00:41.4]} 36... Bc5 {[%clk 0:00:35.8]} 37. b7
{[%clk 0:00:40.2]} 37... Nb1 {[%clk 0:00:26.9]} 38. Nc4 {[%clk 0:00:36.4]} 38...
Rb3 {[%clk 0:00:20.6]} 39. Ncb6 {[%clk 0:00:35.4]} 1-0

[Event "*** SCC Grand Prix: Titled Tuesday Blitz"]
[Site "Chess.com"]
[Date "2020.07.14"]
[Round "7"]
[White "SergeyKarjakin"]
[Black "Gabrielian_Artur"]
[Result "1-0"]
[WhiteElo "2971"]
[BlackElo "2801"]
[TimeControl "180+1"]
[EndTime "11:19:24 PDT"]
[Termination "SergeyKarjakin won on time"]

1. e4 {[%clk 0:03:00.9]} 1... c5 {[%clk 0:02:59.7]} 2. Nf3 {[%clk 0:03:01]} 2...
d6 {[%clk 0:03:00]} 3. d4 {[%clk 0:03:01.6]} 3... cxd4 {[%clk 0:03:00.4]} 4.
Nxd4 {[%clk 0:03:02.5]} 4... Nf6 {[%clk 0:03:00.7]} 5. Nc3 {[%clk 0:03:03.2]}
5... Nc6 {[%clk 0:03:01]} 6. Bg5 {[%clk 0:03:01.9]} 6... e6 {[%clk 0:03:01.1]}
7. Qd2 {[%clk 0:03:02.5]} 7... a6 {[%clk 0:03:01.2]} 8. O-O-O {[%clk 0:03:03]}
8... Bd7 {[%clk 0:03:01]} 9. f4 {[%clk 0:03:02.6]} 9... Be7 {[%clk 0:03:01.2]}
10. Nf3 {[%clk 0:03:01.7]} 10... b5 {[%clk 0:03:00.8]} 11. Bxf6 {[%clk
0:03:02.1]} 11... gxf6 {[%clk 0:03:01.2]} 12. f5 {[%clk 0:03:01.8]} 12... Qa5
{[%clk 0:03:00.8]} 13. Kb1 {[%clk 0:02:57.4]} 13... h5 {[%clk 0:03:00.6]} 14.
fxe6 {[%clk 0:02:49.4]} 14... fxe6 {[%clk 0:02:59.5]} 15. g3 {[%clk 0:02:47.7]}
15... Ne5 {[%clk 0:02:37.1]} 16. Nd4 {[%clk 0:02:39.3]} 16... Rc8 {[%clk
0:02:27.7]} 17. Qe1 {[%clk 0:02:23.8]} 17... Kf7 {[%clk 0:01:36.9]} 18. h4
{[%clk 0:02:12.1]} 18... Rxc3 {[%clk 0:01:30]} 19. Qxc3 {[%clk 0:02:01.7]} 19...
Qxc3 {[%clk 0:01:30]} 20. bxc3 {[%clk 0:02:02.6]} 20... Rc8 {[%clk 0:01:23.9]}
21. Kb2 {[%clk 0:01:59.3]} 21... Bd8 {[%clk 0:01:23.6]} 22. Nb3 {[%clk
0:01:51.9]} 22... Ke7 {[%clk 0:01:21.8]} 23. Be2 {[%clk 0:01:47.4]} 23... a5
{[%clk 0:01:22]} 24. Nd4 {[%clk 0:01:15]} 24... a4 {[%clk 0:01:16.8]} 25. Bxh5
{[%clk 0:01:00]} 25... Ba5 {[%clk 0:00:48.1]} 26. Be2 {[%clk 0:00:58.9]} 26...
Bxc3+ {[%clk 0:00:35.4]} 27. Kc1 {[%clk 0:00:59.2]} 27... Nf7 {[%clk 0:00:07.9]}
28. Nxb5 {[%clk 0:00:47.2]} 28... Be5 {[%clk 0:00:05.5]} 29. g4 {[%clk 0:00:41]}
29... Bf4+ {[%clk 0:00:02.5]} 30. Kb1 {[%clk 0:00:39.6]} 30... Rb8 {[%clk
0:00:01.6]} 31. c4 {[%clk 0:00:39.4]} 31... Ne5 {[%clk 0:00:02.3]} 32. Kc2
{[%clk 0:00:37.3]} 1-0

[Event "*** SCC Grand Prix: Titled Tuesday Blitz"]
[Site "Chess.com"]
[Date "2020.07.14"]
[Round "7"]
[White "TheCount"]
[Black "Artem_Sadovsky"]
[Result "1-0"]
[WhiteElo "2713"]
[BlackElo "2548"]
[TimeControl "180+1"]
[EndTime "11:19:26 PDT"]
[Termination "TheCount won on time"]

1. d4 {[%clk 0:03:00.9]} 1... g6 {[%clk 0:02:59.2]} 2. e4 {[%clk 0:02:57.6]}
2... Bg7 {[%clk 0:02:59.6]} 3. Nc3 {[%clk 0:02:56.9]} 3... d6 {[%clk 0:02:59.8]}
4. f4 {[%clk 0:02:57.2]} 4... a6 {[%clk 0:02:59.7]} 5. Nf3 {[%clk 0:02:55.5]}
5... b5 {[%clk 0:03:00]} 6. Be3 {[%clk 0:02:34.8]} 6... b4 {[%clk 0:02:57.6]} 7.
Ne2 {[%clk 0:02:33.6]} 7... Bb7 {[%clk 0:02:57.9]} 8. e5 {[%clk 0:02:29.1]} 8...
h5 {[%clk 0:02:42.8]} 9. Qd2 {[%clk 0:02:28.9]} 9... Nh6 {[%clk 0:02:43]} 10.
Qxb4 {[%clk 0:02:25.5]} 10... Bxf3 {[%clk 0:02:43.5]} 11. gxf3 {[%clk
0:02:25.3]} 11... Nf5 {[%clk 0:02:42.9]} 12. Bf2 {[%clk 0:02:25.4]} 12... Nc6
{[%clk 0:02:34.5]} 13. Qc4 {[%clk 0:02:25.4]} 13... Qd7 {[%clk 0:02:23.3]} 14.
d5 {[%clk 0:02:25.6]} 14... Na5 {[%clk 0:02:19.2]} 15. Qb4 {[%clk 0:02:25.1]}
15... Qb5 {[%clk 0:02:12.4]} 16. Qxb5+ {[%clk 0:02:24.7]} 16... axb5 {[%clk
0:02:13.3]} 17. Nd4 {[%clk 0:02:21.9]} 17... dxe5 {[%clk 0:01:57.8]} 18. Bxb5+
{[%clk 0:02:18.2]} 18... Kf8 {[%clk 0:01:58.4]} 19. Nxf5 {[%clk 0:02:04.1]}
19... gxf5 {[%clk 0:01:59.3]} 20. fxe5 {[%clk 0:01:54]} 20... Bxe5 {[%clk
0:02:00.2]} 21. O-O-O {[%clk 0:01:48.8]} 21... Nb7 {[%clk 0:01:26.6]} 22. a4
{[%clk 0:01:41.6]} 22... Nd6 {[%clk 0:01:24.8]} 23. Bc6 {[%clk 0:01:41.7]} 23...
Rb8 {[%clk 0:01:25.2]} 24. b3 {[%clk 0:01:40.1]} 24... Bf4+ {[%clk 0:01:21.5]}
25. Kb2 {[%clk 0:01:33.9]} 25... Rh6 {[%clk 0:01:06.7]} 26. Ka3 {[%clk
0:01:29.4]} 26... e5 {[%clk 0:00:49.4]} 27. c4 {[%clk 0:01:08.6]} 27... e4
{[%clk 0:00:40.6]} 28. Bc5 {[%clk 0:01:08.7]} 28... exf3 {[%clk 0:00:31.2]} 29.
a5 {[%clk 0:01:07.5]} 29... Kg7 {[%clk 0:00:17.1]} 30. a6 {[%clk 0:01:04.8]}
30... Rhh8 {[%clk 0:00:17.3]} 31. a7 {[%clk 0:01:02.7]} 31... Ra8 {[%clk
0:00:13.6]} 32. Rdf1 {[%clk 0:00:53]} 32... Ne4 {[%clk 0:00:11]} 33. Bd4+ {[%clk
0:00:50.7]} 33... f6 {[%clk 0:00:11.1]} 34. Bxa8 {[%clk 0:00:46.1]} 34... Rxa8
{[%clk 0:00:10.1]} 35. Rxf3 {[%clk 0:00:46.4]} 35... Bd6+ {[%clk 0:00:06.7]} 36.
b4 {[%clk 0:00:37.5]} 1-0

[Event "*** SCC Grand Prix: Titled Tuesday Blitz"]
[Site "Chess.com"]
[Date "2020.07.14"]
[Round "7"]
[White "jsl796"]
[Black "albano87"]
[Result "1-0"]
[WhiteElo "2858"]
[BlackElo "2491"]
[TimeControl "180+1"]
[EndTime "11:19:30 PDT"]
[Termination "jsl796 won by resignation"]

1. d4 {[%clk 0:03:00.9]} 1... d5 {[%clk 0:02:59.2]} 2. c4 {[%clk 0:02:59.8]}
2... e6 {[%clk 0:02:59.3]} 3. Nc3 {[%clk 0:02:59.3]} 3... Nf6 {[%clk 0:02:59.8]}
4. cxd5 {[%clk 0:02:58.9]} 4... exd5 {[%clk 0:02:58.3]} 5. Bg5 {[%clk
0:02:58.3]} 5... Nbd7 {[%clk 0:02:58.6]} 6. e3 {[%clk 0:02:57.9]} 6... Be7
{[%clk 0:02:59]} 7. Bd3 {[%clk 0:02:54.3]} 7... O-O {[%clk 0:02:59.1]} 8. Qc2
{[%clk 0:02:53.9]} 8... b6 {[%clk 0:02:58.9]} 9. Nf3 {[%clk 0:02:49]} 9... Bb7
{[%clk 0:02:58.3]} 10. O-O {[%clk 0:02:48.7]} 10... c5 {[%clk 0:02:58]} 11. Ne5
{[%clk 0:02:46.9]} 11... g6 {[%clk 0:02:52.4]} 12. Rad1 {[%clk 0:02:35.1]} 12...
Rc8 {[%clk 0:02:50.9]} 13. Qa4 {[%clk 0:02:33]} 13... a6 {[%clk 0:02:44.2]} 14.
Nxd7 {[%clk 0:02:23.2]} 14... Nxd7 {[%clk 0:02:41.2]} 15. Bxe7 {[%clk
0:02:20.6]} 15... Qxe7 {[%clk 0:02:40.7]} 16. dxc5 {[%clk 0:02:08.5]} 16... bxc5
{[%clk 0:02:36.8]} 17. Rfe1 {[%clk 0:01:59.1]} 17... Nb6 {[%clk 0:02:26.2]} 18.
Qa5 {[%clk 0:01:56]} 18... Qf6 {[%clk 0:02:20.8]} 19. Rc1 {[%clk 0:01:46.6]}
19... d4 {[%clk 0:02:14.5]} 20. exd4 {[%clk 0:01:42.5]} 20... cxd4 {[%clk
0:02:03.7]} 21. Ne4 {[%clk 0:01:41.5]} 21... Bxe4 {[%clk 0:01:57.1]} 22. Bxe4
{[%clk 0:01:42.4]} 22... Nc4 {[%clk 0:01:52.8]} 23. Qb4 {[%clk 0:01:38]} 23...
Ne5 {[%clk 0:01:40.9]} 24. Rcd1 {[%clk 0:01:31.1]} 24... Rfd8 {[%clk 0:01:36.2]}
25. h3 {[%clk 0:01:30.6]} 25... d3 {[%clk 0:01:31]} 26. Rd2 {[%clk 0:01:29.1]}
26... Rd4 {[%clk 0:01:21.2]} 27. Qb7 {[%clk 0:01:23.9]} 27... Rcd8 {[%clk
0:01:19.4]} 28. b3 {[%clk 0:01:14.6]} 28... Qf4 {[%clk 0:01:15]} 29. Re3 {[%clk
0:01:14.4]} 29... R8d7 {[%clk 0:00:54.5]} 30. Qxa6 {[%clk 0:01:06.1]} 30... f5
{[%clk 0:00:34.9]} 31. Bxd3 {[%clk 0:01:01.4]} 31... Nxd3 {[%clk 0:00:28.2]} 32.
Rdxd3 {[%clk 0:00:44.6]} 32... Rxd3 {[%clk 0:00:23.3]} 33. Rxd3 {[%clk
0:00:42.8]} 33... Re7 {[%clk 0:00:23.9]} 34. Rd1 {[%clk 0:00:37.6]} 34... h5
{[%clk 0:00:16.6]} 35. Qxg6+ {[%clk 0:00:36.6]} 1-0

[Event "*** SCC Grand Prix: Titled Tuesday Blitz"]
[Site "Chess.com"]
[Date "2020.07.14"]
[Round "7"]
[White "alfiefischer77"]
[Black "awesomevishesh"]
[Result "1-0"]
[WhiteElo "2208"]
[BlackElo "2324"]
[TimeControl "180+1"]
[EndTime "11:19:32 PDT"]
[Termination "alfiefischer77 won on time"]

1. e4 {[%clk 0:03:00.9]} 1... c5 {[%clk 0:02:58.8]} 2. Nf3 {[%clk 0:03:01]} 2...
Nc6 {[%clk 0:02:58.1]} 3. d4 {[%clk 0:03:01.5]} 3... cxd4 {[%clk 0:02:58.9]} 4.
Nxd4 {[%clk 0:03:02.4]} 4... Nf6 {[%clk 0:02:59.2]} 5. Nc3 {[%clk 0:03:02.5]}
5... e5 {[%clk 0:02:59.4]} 6. Ndb5 {[%clk 0:03:01.9]} 6... d6 {[%clk 0:02:59.7]}
7. Bg5 {[%clk 0:03:02]} 7... a6 {[%clk 0:02:59.9]} 8. Bxf6 {[%clk 0:03:01.4]}
8... gxf6 {[%clk 0:02:59.3]} 9. Na3 {[%clk 0:03:01]} 9... b5 {[%clk 0:02:59.1]}
10. Nd5 {[%clk 0:03:01.1]} 10... f5 {[%clk 0:02:58.2]} 11. Bxb5 {[%clk
0:03:00.6]} 11... axb5 {[%clk 0:02:57.6]} 12. Nxb5 {[%clk 0:03:01.5]} 12... Ra4
{[%clk 0:02:57.5]} 13. b4 {[%clk 0:02:59.1]} 13... Rxb4 {[%clk 0:02:56.5]} 14.
Nbc7+ {[%clk 0:02:41.7]} 14... Kd7 {[%clk 0:02:53.7]} 15. O-O {[%clk 0:02:39.1]}
15... Rxe4 {[%clk 0:02:24]} 16. Qh5 {[%clk 0:02:32.2]} 16... Ne7 {[%clk
0:01:16.6]} 17. Qxf7 {[%clk 0:02:06.9]} 17... Kc6 {[%clk 0:00:49.6]} 18. Rab1
{[%clk 0:01:41.1]} 18... Nxd5 {[%clk 0:00:33.7]} 19. Nxd5 {[%clk 0:01:26.3]}
19... Ba6 {[%clk 0:00:20.4]} 20. Rfd1 {[%clk 0:01:10.2]} 20... Qa5 {[%clk
0:00:02.9]} 21. Rb6+ {[%clk 0:00:14.5]} 21... Qxb6 {[%clk 0:00:01.9]} 22. Nxb6
{[%clk 0:00:15.4]} 22... Kxb6 {[%clk 0:00:01.3]} 23. Rb1+ {[%clk 0:00:15.5]}
23... Kc6 {[%clk 0:00:01.7]} 24. Qa7 {[%clk 0:00:15]} 24... Bb5 {[%clk
0:00:01.1]} 25. Qa8+ {[%clk 0:00:11.9]} 1-0

[Event "*** SCC Grand Prix: Titled Tuesday Blitz"]
[Site "Chess.com"]
[Date "2020.07.14"]
[Round "7"]
[White "AvitalBor"]
[Black "OparinGrigoriy"]
[Result "0-1"]
[WhiteElo "2738"]
[BlackElo "2928"]
[TimeControl "180+1"]
[EndTime "11:19:34 PDT"]
[Termination "OparinGrigoriy won by resignation"]

1. e4 {[%clk 0:03:00.9]} 1... e5 {[%clk 0:02:55.1]} 2. Nf3 {[%clk 0:03:00]} 2...
Nc6 {[%clk 0:02:55.6]} 3. Bb5 {[%clk 0:03:00.1]} 3... f5 {[%clk 0:02:55.8]} 4.
d3 {[%clk 0:02:58]} 4... fxe4 {[%clk 0:02:56]} 5. dxe4 {[%clk 0:02:58.9]} 5...
Nf6 {[%clk 0:02:56.7]} 6. O-O {[%clk 0:02:57.4]} 6... d6 {[%clk 0:02:54.1]} 7.
Nc3 {[%clk 0:02:51.1]} 7... Be7 {[%clk 0:02:51.9]} 8. Qd3 {[%clk 0:02:27.9]}
8... Bg4 {[%clk 0:02:51.5]} 9. Qc4 {[%clk 0:01:39.8]} 9... Qd7 {[%clk
0:02:34.3]} 10. Ng5 {[%clk 0:01:37.2]} 10... Bh5 {[%clk 0:01:41.5]} 11. Nd5
{[%clk 0:01:10.6]} 11... a6 {[%clk 0:01:03.8]} 12. Bxc6 {[%clk 0:00:31.7]} 12...
bxc6 {[%clk 0:01:04.7]} 13. Nxe7 {[%clk 0:00:32]} 13... Kxe7 {[%clk 0:01:05.6]}
14. f4 {[%clk 0:00:32.4]} 14... h6 {[%clk 0:00:59.5]} 15. fxe5 {[%clk
0:00:32.2]} 15... dxe5 {[%clk 0:00:59.7]} 16. Nf3 {[%clk 0:00:32.1]} 16... Bxf3
{[%clk 0:00:59.3]} 17. Rxf3 {[%clk 0:00:31.3]} 17... Qd4+ {[%clk 0:00:59.9]} 18.
Qxd4 {[%clk 0:00:31.1]} 18... exd4 {[%clk 0:01:00.8]} 19. Bd2 {[%clk 0:00:25.7]}
19... Ke6 {[%clk 0:00:53.4]} 20. Re1 {[%clk 0:00:22.2]} 20... c5 {[%clk
0:00:52.5]} 21. Ba5 {[%clk 0:00:16.7]} 21... c6 {[%clk 0:00:48.5]} 22. b3 {[%clk
0:00:16.7]} 22... Raf8 {[%clk 0:00:45.5]} 23. Rg3 {[%clk 0:00:16.6]} 23... g5
{[%clk 0:00:44]} 24. c3 {[%clk 0:00:15.3]} 24... Nd7 {[%clk 0:00:42.2]} 25. Rd1
{[%clk 0:00:12.4]} 25... Rf4 {[%clk 0:00:25.2]} 26. cxd4 {[%clk 0:00:11.8]}
26... cxd4 {[%clk 0:00:26.1]} 27. Rxd4 {[%clk 0:00:11.2]} 27... Rhf8 {[%clk
0:00:26.7]} 28. h3 {[%clk 0:00:10.7]} 28... Rf1+ {[%clk 0:00:19.9]} 29. Kh2
{[%clk 0:00:11]} 29... R8f2 {[%clk 0:00:20.3]} 30. Rc3 {[%clk 0:00:10.9]} 30...
Ne5 {[%clk 0:00:20.4]} 31. Bc7 {[%clk 0:00:10.1]} 31... Rxa2 {[%clk 0:00:17.8]}
32. Rc5 {[%clk 0:00:09.6]} 32... Nf3+ {[%clk 0:00:17.2]} 33. Kg3 {[%clk
0:00:08]} 33... Nxd4 {[%clk 0:00:18.1]} 0-1

[Event "*** SCC Grand Prix: Titled Tuesday Blitz"]
[Site "Chess.com"]
[Date "2020.07.14"]
[Round "7"]
[White "Savva09022009"]
[Black "GuuBol"]
[Result "1-0"]
[WhiteElo "2450"]
[BlackElo "2246"]
[TimeControl "180+1"]
[EndTime "11:19:34 PDT"]
[Termination "Savva09022009 won by resignation"]

1. d4 {[%clk 0:03:00.9]} 1... d5 {[%clk 0:02:59.1]} 2. Nc3 {[%clk 0:03:01.2]}
2... e6 {[%clk 0:02:57.2]} 3. Bf4 {[%clk 0:03:01]} 3... Nf6 {[%clk 0:02:54.4]}
4. e3 {[%clk 0:02:55]} 4... c5 {[%clk 0:02:54.3]} 5. Nf3 {[%clk 0:02:54.4]} 5...
Be7 {[%clk 0:02:54]} 6. Nb5 {[%clk 0:02:50.5]} 6... Na6 {[%clk 0:02:51.6]} 7.
Be2 {[%clk 0:02:50.3]} 7... O-O {[%clk 0:02:51.2]} 8. O-O {[%clk 0:02:48.4]}
8... Ne4 {[%clk 0:02:49.7]} 9. c3 {[%clk 0:02:47.4]} 9... c4 {[%clk 0:02:44.9]}
10. a4 {[%clk 0:02:45.7]} 10... Bd7 {[%clk 0:02:44.4]} 11. Ne5 {[%clk
0:02:31.4]} 11... f6 {[%clk 0:02:34.7]} 12. Nxd7 {[%clk 0:02:25.1]} 12... Qxd7
{[%clk 0:02:35.6]} 13. f3 {[%clk 0:02:24.7]} 13... Ng5 {[%clk 0:02:33]} 14. e4
{[%clk 0:02:16.9]} 14... Nf7 {[%clk 0:02:24.2]} 15. exd5 {[%clk 0:02:05.4]}
15... exd5 {[%clk 0:02:25.1]} 16. Re1 {[%clk 0:02:05.4]} 16... Rfe8 {[%clk
0:02:17.8]} 17. Bf1 {[%clk 0:01:59.7]} 17... Bf8 {[%clk 0:01:51.2]} 18. Qc2
{[%clk 0:01:54.5]} 18... Nd6 {[%clk 0:01:38.5]} 19. Nxd6 {[%clk 0:01:36.2]}
19... Bxd6 {[%clk 0:01:37.9]} 20. Bxd6 {[%clk 0:01:36]} 20... Qxd6 {[%clk
0:01:38.2]} 21. g3 {[%clk 0:01:35.6]} 21... Nc7 {[%clk 0:01:32.8]} 22. f4 {[%clk
0:01:32.1]} 22... g6 {[%clk 0:01:27.7]} 23. Bg2 {[%clk 0:01:27.9]} 23... f5
{[%clk 0:01:26.6]} 24. Re5 {[%clk 0:01:27]} 24... Re6 {[%clk 0:01:22.6]} 25.
Rae1 {[%clk 0:01:19.1]} 25... Rae8 {[%clk 0:01:22.2]} 26. b3 {[%clk 0:01:12.1]}
26... Qc6 {[%clk 0:01:17.2]} 27. b4 {[%clk 0:00:19.3]} 27... b5 {[%clk
0:01:16.4]} 28. a5 {[%clk 0:00:19.4]} 28... a6 {[%clk 0:01:08.6]} 29. R1e3
{[%clk 0:00:18.5]} 29... Rxe5 {[%clk 0:01:04.3]} 30. Rxe5 {[%clk 0:00:18.3]}
30... Rxe5 {[%clk 0:01:04.2]} 31. fxe5 {[%clk 0:00:19]} 31... Kf7 {[%clk
0:01:01.9]} 32. Qd2 {[%clk 0:00:19.5]} 32... Qe6 {[%clk 0:00:53.9]} 33. Qg5
{[%clk 0:00:19.2]} 33... Qe7 {[%clk 0:00:48.3]} 34. Qh6 {[%clk 0:00:18.2]} 34...
Ke6 {[%clk 0:00:45.8]} 35. h4 {[%clk 0:00:17.8]} 35... Ne8 {[%clk 0:00:45.3]}
36. h5 {[%clk 0:00:17.4]} 36... Qg7 {[%clk 0:00:41.1]} 37. Qg5 {[%clk
0:00:17.4]} 37... Qe7 {[%clk 0:00:39.9]} 38. Bxd5+ {[%clk 0:00:16.8]} 38... Kd7
{[%clk 0:00:39.1]} 39. Bc6+ {[%clk 0:00:16.3]} 39... Kd8 {[%clk 0:00:38.8]} 40.
Qxe7+ {[%clk 0:00:15.7]} 40... Kxe7 {[%clk 0:00:39.1]} 41. hxg6 {[%clk
0:00:16.6]} 41... hxg6 {[%clk 0:00:37.6]} 42. Bxe8 {[%clk 0:00:15.5]} 1-0

[Event "*** SCC Grand Prix: Titled Tuesday Blitz"]
[Site "Chess.com"]
[Date "2020.07.14"]
[Round "7"]
[White "verdest"]
[Black "anpospan"]
[Result "0-1"]
[WhiteElo "2485"]
[BlackElo "2330"]
[TimeControl "180+1"]
[EndTime "11:19:35 PDT"]
[Termination "anpospan won by resignation"]

1. d4 {[%clk 0:03:00.9]} 1... Nf6 {[%clk 0:02:59.2]} 2. c4 {[%clk 0:03:00.8]}
2... e6 {[%clk 0:02:59.2]} 3. Nf3 {[%clk 0:03:00.2]} 3... c5 {[%clk 0:02:59.2]}
4. d5 {[%clk 0:02:59.3]} 4... exd5 {[%clk 0:02:59.2]} 5. cxd5 {[%clk 0:02:58.5]}
5... d6 {[%clk 0:02:59.7]} 6. e4 {[%clk 0:02:57]} 6... g6 {[%clk 0:02:59.6]} 7.
Bd3 {[%clk 0:02:54.4]} 7... Bg7 {[%clk 0:02:59.5]} 8. O-O {[%clk 0:02:53.8]}
8... a6 {[%clk 0:02:59.6]} 9. Re1 {[%clk 0:02:52.3]} 9... Nbd7 {[%clk
0:02:56.7]} 10. h3 {[%clk 0:02:49.1]} 10... O-O {[%clk 0:02:55.9]} 11. a4 {[%clk
0:02:40.2]} 11... h6 {[%clk 0:02:54]} 12. Nc3 {[%clk 0:02:36.9]} 12... Qe7
{[%clk 0:02:46.2]} 13. Nd2 {[%clk 0:02:24.8]} 13... Ne5 {[%clk 0:02:44.4]} 14.
Bf1 {[%clk 0:02:23.2]} 14... g5 {[%clk 0:02:43.9]} 15. Qc2 {[%clk 0:01:48.5]}
15... g4 {[%clk 0:02:42.5]} 16. hxg4 {[%clk 0:01:43.9]} 16... Nfxg4 {[%clk
0:02:41.8]} 17. g3 {[%clk 0:01:32.3]} 17... Qg5 {[%clk 0:01:50]} 18. Bg2 {[%clk
0:01:22.3]} 18... Nxf2 {[%clk 0:01:41.6]} 19. Kxf2 {[%clk 0:01:19]} 19... Ng4+
{[%clk 0:01:40.8]} 20. Kf1 {[%clk 0:01:09.5]} 20... Nh2+ {[%clk 0:01:25.3]} 21.
Ke2 {[%clk 0:00:51.6]} 21... Qxg3 {[%clk 0:01:23.7]} 22. Bf3 {[%clk 0:00:31.5]}
22... Bd4 {[%clk 0:01:22.8]} 23. Qd3 {[%clk 0:00:21.5]} 23... Nxf3 {[%clk
0:01:08.8]} 24. Nxf3 {[%clk 0:00:20.3]} 24... Bg4 {[%clk 0:00:57.4]} 25. Rf1
{[%clk 0:00:19.8]} 25... f5 {[%clk 0:00:49.5]} 26. Bxh6 {[%clk 0:00:07]} 26...
fxe4 {[%clk 0:00:42.8]} 27. Nxe4 {[%clk 0:00:07.9]} 27... Qg2+ {[%clk
0:00:35.9]} 28. Kd1 {[%clk 0:00:07.7]} 28... Rxf3 {[%clk 0:00:32.1]} 29. Rxf3
{[%clk 0:00:03.2]} 29... Bxf3+ {[%clk 0:00:27.8]} 30. Kc1 {[%clk 0:00:03.6]} 0-1